[Event "Late-Titled-Tuesday-Blitz-January-16-2024"]
[Site "Chess.com"]
[Date "2024.01.16"]
[Round "1"]
[White "vidavi"]
[Black "FelixBlohberger"]
[Result "1-0"]
[WhiteElo "2473"]
[BlackElo "2805"]
[TimeControl "180+1"]
[EndTime "14:07:34 PST"]
[Termination "vidavi won on time"]

1. Nf3 {[%clk 0:03:00.9]} 1... g6 {[%clk 0:03:00.9]} 2. d4 {[%clk 0:03:00.8]}
2... Bg7 {[%clk 0:03:01]} 3. c4 {[%clk 0:03:01.4]} 3... d6 {[%clk 0:03:00.5]} 4.
Nc3 {[%clk 0:03:01.6]} 4... Nf6 {[%clk 0:03:00]} 5. e4 {[%clk 0:03:01.6]} 5...
O-O {[%clk 0:03:00.3]} 6. Be2 {[%clk 0:03:02]} 6... e5 {[%clk 0:02:59.4]} 7. O-O
{[%clk 0:03:01.3]} 7... Na6 {[%clk 0:03:00]} 8. d5 {[%clk 0:02:45.4]} 8... Nc5
{[%clk 0:02:56.5]} 9. Nd2 {[%clk 0:02:28.8]} 9... a5 {[%clk 0:02:41.4]} 10. b3
{[%clk 0:02:29]} 10... Bh6 {[%clk 0:02:32.5]} 11. Qc2 {[%clk 0:02:12.4]} 11...
Bd7 {[%clk 0:02:18.6]} 12. a3 {[%clk 0:02:09.8]} 12... Nh5 {[%clk 0:01:46]} 13.
Bxh5 {[%clk 0:01:53]} 13... gxh5 {[%clk 0:01:46]} 14. Nf3 {[%clk 0:01:36.3]}
14... Bxc1 {[%clk 0:01:38.2]} 15. Raxc1 {[%clk 0:01:24.3]} 15... f5 {[%clk
0:01:37.7]} 16. b4 {[%clk 0:01:01.3]} 16... axb4 {[%clk 0:01:35.1]} 17. axb4
{[%clk 0:01:02.2]} 17... fxe4 {[%clk 0:01:20.9]} 18. Nxe4 {[%clk 0:00:52.9]}
18... Nxe4 {[%clk 0:01:17.7]} 19. Qxe4 {[%clk 0:00:53.8]} 19... Bf5 {[%clk
0:01:05.1]} 20. Qe3 {[%clk 0:00:53.6]} 20... Bg6 {[%clk 0:00:51.7]} 21. h4
{[%clk 0:00:45.4]} 21... Rf4 {[%clk 0:00:48.1]} 22. g3 {[%clk 0:00:43.4]} 22...
Re4 {[%clk 0:00:45.7]} 23. Qd2 {[%clk 0:00:35]} 23... Qf6 {[%clk 0:00:35.6]} 24.
Ng5 {[%clk 0:00:34.1]} 24... Rd4 {[%clk 0:00:35.6]} 25. Qe2 {[%clk 0:00:33.9]}
25... Bd3 {[%clk 0:00:17.7]} 26. Qxh5 {[%clk 0:00:33.7]} 26... h6 {[%clk
0:00:17.8]} 27. Ne6 {[%clk 0:00:22.1]} 27... Rxc4 {[%clk 0:00:05.7]} 28. Rxc4
{[%clk 0:00:21.9]} 28... Bxc4 {[%clk 0:00:01.5]} 29. Qg4+ {[%clk 0:00:22]} 29...
Kh8 {[%clk 0:00:01.1]} 30. Qxc4 {[%clk 0:00:22.6]} 30... c6 {[%clk 0:00:01.1]}
31. dxc6 {[%clk 0:00:21.6]} 31... bxc6 {[%clk 0:00:01.9]} 32. Nc7 {[%clk
0:00:20.4]} 32... Rc8 {[%clk 0:00:01.5]} 33. Qxc6 {[%clk 0:00:21.1]} 33... Qe7
{[%clk 0:00:01.8]} 34. Rc1 {[%clk 0:00:21.7]} 34... Qg7 {[%clk 0:00:01.6]} 35.
b5 {[%clk 0:00:22.2]} 35... e4 {[%clk 0:00:02]} 36. Qxe4 {[%clk 0:00:21.2]}
36... Rxc7 {[%clk 0:00:02.5]} 37. Qe8+ {[%clk 0:00:18.1]} 37... Kh7 {[%clk
0:00:02.8]} 38. Rxc7 {[%clk 0:00:17.7]} 38... Qxc7 {[%clk 0:00:03.7]} 39. Qc6
{[%clk 0:00:18]} 39... Qa5 {[%clk 0:00:01.6]} 40. b6 {[%clk 0:00:17.6]} 40...
Qe1+ {[%clk 0:00:01.5]} 41. Kg2 {[%clk 0:00:17.5]} 41... Qb4 {[%clk 0:00:01.8]}
42. b7 {[%clk 0:00:17.7]} 42... Kg6 {[%clk 0:00:02.1]} 43. Qe8+ {[%clk
0:00:13.9]} 43... Kg7 {[%clk 0:00:02.1]} 44. b8=Q {[%clk 0:00:14.8]} 1-0

[Event "Late-Titled-Tuesday-Blitz-January-16-2024"]
[Site "Chess.com"]
[Date "2024.01.16"]
[Round "1"]
[White "BozeKat"]
[Black "Macron20hTF1"]
[Result "0-1"]
[WhiteElo "2106"]
[BlackElo "2556"]
[TimeControl "180+1"]
[EndTime "14:07:34 PST"]
[Termination "Macron20hTF1 won on time"]

1. d4 {[%clk 0:02:59.4]} 1... g6 {[%clk 0:02:57.1]} 2. Nc3 {[%clk 0:02:57.7]}
2... Bg7 {[%clk 0:02:57.7]} 3. e4 {[%clk 0:02:57.3]} 3... d6 {[%clk 0:02:58.3]}
4. Be3 {[%clk 0:02:54.3]} 4... a6 {[%clk 0:02:53.9]} 5. f3 {[%clk 0:02:53.2]}
5... b5 {[%clk 0:02:52]} 6. Qd2 {[%clk 0:02:51.9]} 6... Nd7 {[%clk 0:02:50]} 7.
Nge2 {[%clk 0:02:47.4]} 7... Bb7 {[%clk 0:02:45.1]} 8. g4 {[%clk 0:02:36.5]}
8... c5 {[%clk 0:02:43.8]} 9. Ng3 {[%clk 0:02:33.8]} 9... b4 {[%clk 0:02:42.7]}
10. Nd1 {[%clk 0:02:28.8]} 10... cxd4 {[%clk 0:02:35.7]} 11. Bxd4 {[%clk
0:02:28.6]} 11... Ne5 {[%clk 0:02:36]} 12. Be2 {[%clk 0:02:22.8]} 12... Nf6
{[%clk 0:02:32.7]} 13. Qxb4 {[%clk 0:02:16]} 13... Rb8 {[%clk 0:02:28]} 14. Qa3
{[%clk 0:01:49.8]} 14... O-O {[%clk 0:02:26.8]} 15. Nf2 {[%clk 0:01:37.6]} 15...
Nc6 {[%clk 0:02:08.8]} 16. Bc3 {[%clk 0:01:33.9]} 16... Nd7 {[%clk 0:02:04.6]}
17. Bxg7 {[%clk 0:01:26.3]} 17... Kxg7 {[%clk 0:02:05.5]} 18. h4 {[%clk
0:01:19.2]} 18... Qa5+ {[%clk 0:02:02.8]} 19. Qxa5 {[%clk 0:01:16.6]} 19... Nxa5
{[%clk 0:02:03.7]} 20. b3 {[%clk 0:01:14]} 20... Rfc8 {[%clk 0:01:59.6]} 21. c4
{[%clk 0:01:11.5]} 21... Nc6 {[%clk 0:01:59.2]} 22. Rd1 {[%clk 0:01:09.2]} 22...
a5 {[%clk 0:01:58.8]} 23. h5 {[%clk 0:01:00]} 23... Nc5 {[%clk 0:01:49.6]} 24.
Nd3 {[%clk 0:00:56.5]} 24... Ne6 {[%clk 0:01:42.2]} 25. h6+ {[%clk 0:00:54.4]}
25... Kf8 {[%clk 0:01:40.2]} 26. Kf2 {[%clk 0:00:37.1]} 26... Ba6 {[%clk
0:01:36.1]} 27. Nb2 {[%clk 0:00:32.7]} 27... Nb4 {[%clk 0:01:26.8]} 28. a3
{[%clk 0:00:27.4]} 28... Nc2 {[%clk 0:01:25.4]} 29. Rd3 {[%clk 0:00:26.1]} 29...
Ncd4 {[%clk 0:01:18.6]} 30. Bd1 {[%clk 0:00:23.9]} 30... Nc6 {[%clk 0:01:09.8]}
31. Ke3 {[%clk 0:00:23.6]} 31... Ne5 {[%clk 0:01:06.9]} 32. Rd5 {[%clk
0:00:22.7]} 32... Nc5 {[%clk 0:01:07.8]} 33. f4 {[%clk 0:00:20.6]} 33... Nc6
{[%clk 0:01:07.1]} 34. f5 {[%clk 0:00:18]} 34... Nxb3 {[%clk 0:01:06.4]} 35.
fxg6 {[%clk 0:00:17.8]} 35... fxg6 {[%clk 0:01:06.3]} 36. Rf1+ {[%clk
0:00:17.3]} 36... Ke8 {[%clk 0:01:06.8]} 37. Ne2 {[%clk 0:00:09.9]} 37... Nc5
{[%clk 0:01:05.6]} 38. Nd4 {[%clk 0:00:09.4]} 38... Rxb2 {[%clk 0:01:04.6]} 39.
Nxc6 {[%clk 0:00:09]} 39... Rxc6 {[%clk 0:01:04.3]} 40. Rxc5 {[%clk 0:00:07.9]}
40... Rxc5 {[%clk 0:01:02.9]} 41. Ba4+ {[%clk 0:00:08.2]} 41... Kd8 {[%clk
0:01:02.2]} 42. Rf8+ {[%clk 0:00:07]} 42... Kc7 {[%clk 0:01:02.7]} 43. Rf7
{[%clk 0:00:07.5]} 43... Re5 {[%clk 0:00:59.3]} 44. Rxh7 {[%clk 0:00:07.1]}
44... Rh2 {[%clk 0:00:57.8]} 45. Rh8 {[%clk 0:00:07.2]} 45... Bxc4 {[%clk
0:00:56.9]} 46. h7 {[%clk 0:00:07.4]} 46... Be6 {[%clk 0:00:56.6]} 47. Bb5
{[%clk 0:00:05.7]} 47... Bxg4 {[%clk 0:00:56.1]} 48. Ba6 {[%clk 0:00:05.7]}
48... Be6 {[%clk 0:00:51.9]} 49. Kd4 {[%clk 0:00:02]} 49... Reh5 {[%clk
0:00:51.9]} 50. a4 {[%clk 0:00:02.3]} 50... Rxh7 {[%clk 0:00:51.7]} 51. Rf8
{[%clk 0:00:02.5]} 51... Rf7 {[%clk 0:00:51.2]} 52. Ra8 {[%clk 0:00:01.8]} 52...
Kb6 {[%clk 0:00:50.6]} 53. Bb5 {[%clk 0:00:02]} 53... Rd2+ {[%clk 0:00:48.3]}
54. Ke3 {[%clk 0:00:01]} 54... Rc2 {[%clk 0:00:47.4]} 55. Ra6+ {[%clk
0:00:01.9]} 55... Kc5 {[%clk 0:00:47.3]} 56. Ra7 {[%clk 0:00:02.3]} 56... Kb4
{[%clk 0:00:47.4]} 57. Rb7 {[%clk 0:00:02.4]} 57... Ka3 {[%clk 0:00:47.6]} 58.
Bd3 {[%clk 0:00:02.5]} 58... Rc3 {[%clk 0:00:47.5]} 59. Kd2 {[%clk 0:00:02.1]}
59... Rb3 {[%clk 0:00:47.4]} 60. Ra7 {[%clk 0:00:01.5]} 60... Rf2+ {[%clk
0:00:47.2]} 61. Ke1 {[%clk 0:00:01.1]} 61... Rfb2 {[%clk 0:00:47.4]} 0-1

[Event "Late-Titled-Tuesday-Blitz-January-16-2024"]
[Site "Chess.com"]
[Date "2024.01.16"]
[Round "1"]
[White "mishanick"]
[Black "masnyszachistaaa"]
[Result "1-0"]
[WhiteElo "3079"]
[BlackElo "2523"]
[TimeControl "180+1"]
[EndTime "14:07:36 PST"]
[Termination "mishanick won by resignation"]

1. d4 {[%clk 0:03:00.9]} 1... Nf6 {[%clk 0:02:59]} 2. c4 {[%clk 0:03:00.2]} 2...
c6 {[%clk 0:02:53.2]} 3. Nc3 {[%clk 0:03:00.3]} 3... d5 {[%clk 0:02:53.3]} 4.
Nf3 {[%clk 0:03:01]} 4... e6 {[%clk 0:02:43.2]} 5. Bg5 {[%clk 0:03:00.8]} 5...
Nbd7 {[%clk 0:02:43]} 6. e3 {[%clk 0:03:01.3]} 6... Qa5 {[%clk 0:02:42.9]} 7.
Nd2 {[%clk 0:03:00.9]} 7... dxc4 {[%clk 0:02:42.3]} 8. Bxf6 {[%clk 0:03:01.2]}
8... Nxf6 {[%clk 0:02:43.2]} 9. Nxc4 {[%clk 0:03:01.7]} 9... Qc7 {[%clk
0:02:43.9]} 10. Rc1 {[%clk 0:03:01.7]} 10... Be7 {[%clk 0:02:41.8]} 11. g3
{[%clk 0:03:00.5]} 11... O-O {[%clk 0:02:41.3]} 12. Bg2 {[%clk 0:03:01]} 12...
Nd5 {[%clk 0:02:36.3]} 13. O-O {[%clk 0:02:57.3]} 13... Nxc3 {[%clk 0:02:35.5]}
14. Rxc3 {[%clk 0:02:58.2]} 14... Rd8 {[%clk 0:02:32.2]} 15. Qc2 {[%clk
0:02:55.2]} 15... Bf6 {[%clk 0:02:27.1]} 16. f4 {[%clk 0:02:52.1]} 16... Qe7
{[%clk 0:02:23.7]} 17. Ne5 {[%clk 0:02:50.3]} 17... Bd7 {[%clk 0:02:20.6]} 18.
Rc1 {[%clk 0:02:42]} 18... Be8 {[%clk 0:02:19.7]} 19. a3 {[%clk 0:02:41.5]}
19... a5 {[%clk 0:02:03.5]} 20. Be4 {[%clk 0:02:37.9]} 20... g6 {[%clk
0:02:02.5]} 21. Kg2 {[%clk 0:02:35.8]} 21... Bxe5 {[%clk 0:02:02.4]} 22. fxe5
{[%clk 0:02:34.6]} 22... f6 {[%clk 0:02:02.9]} 23. exf6 {[%clk 0:02:34.4]} 23...
Qxf6 {[%clk 0:02:03.8]} 24. Rf1 {[%clk 0:02:34.5]} 24... Qe7 {[%clk 0:02:02.2]}
25. Rc5 {[%clk 0:02:26.1]} 25... Bf7 {[%clk 0:01:58.8]} 26. h4 {[%clk
0:02:23.5]} 26... Rf8 {[%clk 0:01:53.4]} 27. h5 {[%clk 0:02:17.6]} 27... Kg7
{[%clk 0:01:53.5]} 28. Qe2 {[%clk 0:02:03.8]} 28... gxh5 {[%clk 0:01:43.5]} 29.
Bf3 {[%clk 0:01:18.3]} 29... Bg6 {[%clk 0:01:36.8]} 30. Re5 {[%clk 0:01:17.6]}
30... Rae8 {[%clk 0:01:18.4]} 31. Rh1 {[%clk 0:01:13]} 31... Rf5 {[%clk
0:01:09.9]} 32. Bxh5 {[%clk 0:01:06.4]} 32... Rxe5 {[%clk 0:01:08.6]} 33. dxe5
{[%clk 0:01:07.3]} 33... Qg5 {[%clk 0:01:03.4]} 34. Bxg6 {[%clk 0:01:07.8]}
34... hxg6 {[%clk 0:01:00.2]} 35. Rd1 {[%clk 0:01:06.4]} 35... Re7 {[%clk
0:00:55.5]} 36. e4 {[%clk 0:00:54]} 36... Qxe5 {[%clk 0:00:55.2]} 37. Rh1 {[%clk
0:00:50.7]} 37... Rd7 {[%clk 0:00:51.6]} 38. Rf1 {[%clk 0:00:42.4]} 38... Rd4
{[%clk 0:00:42.6]} 39. Rf4 {[%clk 0:00:41.9]} 39... Qd6 {[%clk 0:00:40.8]} 40.
Qf3 {[%clk 0:00:36.1]} 40... Rd2+ {[%clk 0:00:35.2]} 41. Kh3 {[%clk 0:00:36.5]}
41... Qe7 {[%clk 0:00:34.6]} 42. e5 {[%clk 0:00:35.8]} 42... Rd5 {[%clk
0:00:29.9]} 43. Qe3 {[%clk 0:00:33.1]} 43... Qc7 {[%clk 0:00:25.6]} 44. Rh4
{[%clk 0:00:31.4]} 44... Qxe5 {[%clk 0:00:18.7]} 45. Qh6+ {[%clk 0:00:31.6]}
45... Kf7 {[%clk 0:00:19.1]} 46. Rf4+ {[%clk 0:00:30.5]} 46... Qxf4 {[%clk
0:00:09.8]} 47. Qxf4+ {[%clk 0:00:31.4]} 47... Ke7 {[%clk 0:00:10.1]} 48. Qc7+
{[%clk 0:00:31.9]} 48... Rd7 {[%clk 0:00:10]} 49. Qxa5 {[%clk 0:00:32.6]} 49...
Kf7 {[%clk 0:00:09.3]} 50. Qb4 {[%clk 0:00:32.4]} 50... Kf6 {[%clk 0:00:08.9]}
51. a4 {[%clk 0:00:32.5]} 51... Kf7 {[%clk 0:00:07.2]} 52. Qc5 {[%clk 0:00:32]}
52... Kf6 {[%clk 0:00:07.4]} 53. Qf8+ {[%clk 0:00:31.5]} 53... Ke5 {[%clk
0:00:07.5]} 54. Qf4+ {[%clk 0:00:30.6]} 54... Kd5 {[%clk 0:00:07.5]} 55. Qd2+
{[%clk 0:00:31.3]} 1-0

[Event "Late-Titled-Tuesday-Blitz-January-16-2024"]
[Site "Chess.com"]
[Date "2024.01.16"]
[Round "1"]
[White "Jarrahi2452"]
[Black "AlexLongson"]
[Result "1-0"]
[WhiteElo "2620"]
[BlackElo "2266"]
[TimeControl "180+1"]
[EndTime "14:07:36 PST"]
[Termination "Jarrahi2452 won on time"]

1. d4 {[%clk 0:03:00.9]} 1... d5 {[%clk 0:02:56.7]} 2. Bf4 {[%clk 0:03:00.9]}
2... Nf6 {[%clk 0:02:56.2]} 3. e3 {[%clk 0:02:59.9]} 3... c5 {[%clk 0:02:56.3]}
4. c3 {[%clk 0:03:00.1]} 4... Nc6 {[%clk 0:02:55.1]} 5. Nd2 {[%clk 0:03:00]}
5... cxd4 {[%clk 0:02:52.2]} 6. exd4 {[%clk 0:02:59.8]} 6... Bf5 {[%clk
0:02:50.7]} 7. Qb3 {[%clk 0:02:52.7]} 7... Qb6 {[%clk 0:02:44.8]} 8. Qxb6 {[%clk
0:02:49.5]} 8... axb6 {[%clk 0:02:45.2]} 9. Ngf3 {[%clk 0:02:47.9]} 9... e6
{[%clk 0:02:45]} 10. Bb5 {[%clk 0:02:46.3]} 10... Nd7 {[%clk 0:02:36.7]} 11. O-O
{[%clk 0:02:38.2]} 11... Be7 {[%clk 0:02:36.4]} 12. Rfe1 {[%clk 0:02:32.8]}
12... h6 {[%clk 0:02:34]} 13. Ne5 {[%clk 0:02:31.1]} 13... Ndxe5 {[%clk
0:02:29.7]} 14. Bxe5 {[%clk 0:02:30.9]} 14... O-O {[%clk 0:02:16.5]} 15. Bc7
{[%clk 0:02:28.2]} 15... Bd8 {[%clk 0:02:13.2]} 16. Bd6 {[%clk 0:02:15.2]} 16...
Re8 {[%clk 0:02:12.8]} 17. Nf3 {[%clk 0:02:12.2]} 17... Be7 {[%clk 0:02:05.7]}
18. Bg3 {[%clk 0:02:07.4]} 18... Rec8 {[%clk 0:02:03.6]} 19. a4 {[%clk
0:02:04.1]} 19... Na7 {[%clk 0:01:51.1]} 20. Bf1 {[%clk 0:02:03.1]} 20... Nc6
{[%clk 0:01:40.8]} 21. Ne5 {[%clk 0:01:56.6]} 21... Nxe5 {[%clk 0:01:16.3]} 22.
Bxe5 {[%clk 0:01:57.5]} 22... Kf8 {[%clk 0:01:05.7]} 23. f3 {[%clk 0:01:49.8]}
23... Bc2 {[%clk 0:01:05.3]} 24. Bb5 {[%clk 0:01:49.2]} 24... Bb3 {[%clk
0:01:04.9]} 25. Kf2 {[%clk 0:01:44.8]} 25... Bc4 {[%clk 0:01:04.9]} 26. Ke3
{[%clk 0:01:31.8]} 26... Ra5 {[%clk 0:01:00.6]} 27. b4 {[%clk 0:01:27.8]} 27...
Raa8 {[%clk 0:00:53.1]} 28. Kd2 {[%clk 0:01:28]} 28... Bg5+ {[%clk 0:00:43.6]}
29. Kc2 {[%clk 0:01:25.5]} 29... Be7 {[%clk 0:00:43.4]} 30. Kb2 {[%clk
0:01:21.7]} 30... Ra7 {[%clk 0:00:41.5]} 31. Bxc4 {[%clk 0:01:18.9]} 31... Rxc4
{[%clk 0:00:40.7]} 32. Ra3 {[%clk 0:01:15.7]} 32... Ra8 {[%clk 0:00:39.1]} 33.
a5 {[%clk 0:01:10.1]} 33... b5 {[%clk 0:00:37.6]} 34. g4 {[%clk 0:01:08.9]}
34... Ra6 {[%clk 0:00:37.3]} 35. Bg3 {[%clk 0:01:07.2]} 35... Rac6 {[%clk
0:00:36.9]} 36. Re3 {[%clk 0:01:05.2]} 36... Ra6 {[%clk 0:00:35.5]} 37. h4
{[%clk 0:01:03.9]} 37... g6 {[%clk 0:00:34.6]} 38. f4 {[%clk 0:01:02.5]} 38...
Kg7 {[%clk 0:00:33]} 39. f5 {[%clk 0:01:00.6]} 39... gxf5 {[%clk 0:00:33]} 40.
gxf5 {[%clk 0:01:00.3]} 40... Bf6 {[%clk 0:00:30.2]} 41. Ra1 {[%clk 0:00:57.1]}
41... exf5 {[%clk 0:00:17.1]} 42. Rg1 {[%clk 0:00:57]} 42... Kf8 {[%clk
0:00:14.7]} 43. Rf1 {[%clk 0:00:54.6]} 43... Re6 {[%clk 0:00:13.4]} 44. Ref3
{[%clk 0:00:44.9]} 44... Re2+ {[%clk 0:00:12.9]} 45. Kb3 {[%clk 0:00:45.4]}
45... Bxd4 {[%clk 0:00:02.7]} 46. cxd4 {[%clk 0:00:43.3]} 46... Rcc2 {[%clk
0:00:03.1]} 47. Rb1 {[%clk 0:00:43.1]} 47... Rcd2 {[%clk 0:00:03.5]} 48. Be5
{[%clk 0:00:40.3]} 48... Ke7 {[%clk 0:00:01.8]} 49. Bf4 {[%clk 0:00:31.2]} 1-0

[Event "Late-Titled-Tuesday-Blitz-January-16-2024"]
[Site "Chess.com"]
[Date "2024.01.16"]
[Round "1"]
[White "Langua_Chess"]
[Black "RobertoJBM"]
[Result "1-0"]
[WhiteElo "2463"]
[BlackElo "2789"]
[TimeControl "180+1"]
[EndTime "14:07:40 PST"]
[Termination "Langua_Chess won by resignation"]

1. e4 {[%clk 0:03:00.9]} 1... c6 {[%clk 0:02:59.6]} 2. Nf3 {[%clk 0:03:01.6]}
2... d5 {[%clk 0:03:00.4]} 3. Nc3 {[%clk 0:02:59.2]} 3... dxe4 {[%clk
0:02:59.6]} 4. Nxe4 {[%clk 0:02:59.2]} 4... Bg4 {[%clk 0:02:59.4]} 5. Be2 {[%clk
0:02:57.2]} 5... e6 {[%clk 0:02:58.9]} 6. O-O {[%clk 0:02:57.1]} 6... Nd7 {[%clk
0:02:58.3]} 7. h3 {[%clk 0:02:57.6]} 7... Bh5 {[%clk 0:02:57.9]} 8. d4 {[%clk
0:02:57.2]} 8... Ngf6 {[%clk 0:02:57.7]} 9. Ng3 {[%clk 0:02:55.1]} 9... Bg6
{[%clk 0:02:56.8]} 10. c4 {[%clk 0:02:55.8]} 10... Bd6 {[%clk 0:02:55.8]} 11.
Be3 {[%clk 0:02:52.6]} 11... O-O {[%clk 0:02:55.4]} 12. Qd2 {[%clk 0:02:50.5]}
12... Re8 {[%clk 0:02:51.3]} 13. b3 {[%clk 0:02:49]} 13... Qc7 {[%clk
0:02:51.1]} 14. Nh1 {[%clk 0:02:27]} 14... Rad8 {[%clk 0:02:40.2]} 15. Rfd1
{[%clk 0:02:26.4]} 15... c5 {[%clk 0:02:30.9]} 16. Qe1 {[%clk 0:02:18.2]} 16...
a6 {[%clk 0:02:23.9]} 17. Ng3 {[%clk 0:02:11.6]} 17... cxd4 {[%clk 0:02:10.5]}
18. Nxd4 {[%clk 0:02:08.8]} 18... Ne5 {[%clk 0:02:03.8]} 19. Nf1 {[%clk
0:02:03.2]} 19... Bc5 {[%clk 0:01:55.1]} 20. Nf3 {[%clk 0:01:54.6]} 20... Ned7
{[%clk 0:01:41.1]} 21. Qc3 {[%clk 0:01:49.3]} 21... Bf8 {[%clk 0:01:34.5]} 22.
Nh4 {[%clk 0:01:43.7]} 22... Be4 {[%clk 0:01:30.9]} 23. Nd2 {[%clk 0:01:35.6]}
23... Bc6 {[%clk 0:01:30.7]} 24. Nhf3 {[%clk 0:01:34.9]} 24... g6 {[%clk
0:01:28.3]} 25. Nd4 {[%clk 0:01:35]} 25... Bg7 {[%clk 0:01:26.9]} 26. Nxc6
{[%clk 0:01:32.9]} 26... Qxc6 {[%clk 0:01:27.8]} 27. Bf3 {[%clk 0:01:32.8]}
27... Qc7 {[%clk 0:01:27.8]} 28. Qb4 {[%clk 0:01:30.6]} 28... b6 {[%clk
0:01:23.9]} 29. Rac1 {[%clk 0:01:30]} 29... Rb8 {[%clk 0:01:18.9]} 30. Ne4
{[%clk 0:01:21.6]} 30... Ne5 {[%clk 0:01:14.1]} 31. Nxf6+ {[%clk 0:01:21.6]}
31... Bxf6 {[%clk 0:01:15]} 32. Be2 {[%clk 0:01:22.3]} 32... Be7 {[%clk
0:01:11.9]} 33. Qc3 {[%clk 0:01:21.5]} 33... Nd7 {[%clk 0:01:04.5]} 34. Bh6
{[%clk 0:01:15.1]} 34... Bf8 {[%clk 0:01:04.3]} 35. Bxf8 {[%clk 0:01:00.7]}
35... Rxf8 {[%clk 0:00:59.4]} 36. c5 {[%clk 0:00:55.6]} 36... bxc5 {[%clk
0:00:55.8]} 37. Bxa6 {[%clk 0:00:55.4]} 37... Rb6 {[%clk 0:00:53.6]} 38. Be2
{[%clk 0:00:52.5]} 38... Rc8 {[%clk 0:00:49.1]} 39. Rd2 {[%clk 0:00:50.8]} 39...
Nf8 {[%clk 0:00:48.9]} 40. Rdc2 {[%clk 0:00:50.1]} 40... Qa7 {[%clk 0:00:46.1]}
41. Qe3 {[%clk 0:00:47.1]} 41... Nd7 {[%clk 0:00:38.2]} 42. Bf3 {[%clk
0:00:44.2]} 42... Rc7 {[%clk 0:00:34.4]} 43. h4 {[%clk 0:00:44.2]} 43... h5
{[%clk 0:00:33.3]} 44. g3 {[%clk 0:00:44.9]} 44... Rd6 {[%clk 0:00:30.9]} 45.
Be2 {[%clk 0:00:41.1]} 45... Qb6 {[%clk 0:00:30.6]} 46. Rd2 {[%clk 0:00:38.3]}
46... Rxd2 {[%clk 0:00:28.9]} 47. Qxd2 {[%clk 0:00:39.2]} 47... Kg7 {[%clk
0:00:27.9]} 48. Qc3+ {[%clk 0:00:37.7]} 48... Nf6 {[%clk 0:00:27]} 49. b4 {[%clk
0:00:34.1]} 49... Qa7 {[%clk 0:00:20.9]} 50. a3 {[%clk 0:00:34.1]} 50... e5
{[%clk 0:00:18.6]} 51. Qxe5 {[%clk 0:00:31.5]} 51... Re7 {[%clk 0:00:16.9]} 52.
Qb2 {[%clk 0:00:29.9]} 52... cxb4 {[%clk 0:00:17.2]} 53. axb4 {[%clk 0:00:29]}
53... Qb6 {[%clk 0:00:17.5]} 54. Bf3 {[%clk 0:00:26.8]} 54... Re5 {[%clk
0:00:17.2]} 55. Qxe5 {[%clk 0:00:25.3]} 1-0

[Event "Late-Titled-Tuesday-Blitz-January-16-2024"]
[Site "Chess.com"]
[Date "2024.01.16"]
[Round "1"]
[White "MusicCityMaster"]
[Black "GMKrikor"]
[Result "1/2-1/2"]
[WhiteElo "2410"]
[BlackElo "2716"]
[TimeControl "180+1"]
[EndTime "14:07:42 PST"]
[Termination "Game drawn by repetition"]

1. d4 {[%clk 0:03:00.9]} 1... Nf6 {[%clk 0:02:59.9]} 2. c4 {[%clk 0:03:00.8]}
2... g6 {[%clk 0:03:00.2]} 3. Nc3 {[%clk 0:03:01.5]} 3... d5 {[%clk 0:03:00.6]}
4. Bf4 {[%clk 0:03:00.9]} 4... Bg7 {[%clk 0:03:00.5]} 5. Rc1 {[%clk 0:03:00.5]}
5... dxc4 {[%clk 0:02:57.6]} 6. e3 {[%clk 0:02:59.2]} 6... Be6 {[%clk
0:02:55.5]} 7. Nf3 {[%clk 0:02:59.4]} 7... O-O {[%clk 0:02:44.3]} 8. Ng5 {[%clk
0:02:57.4]} 8... Bd5 {[%clk 0:02:44.9]} 9. e4 {[%clk 0:02:55.8]} 9... h6 {[%clk
0:02:45.5]} 10. exd5 {[%clk 0:02:54.8]} 10... hxg5 {[%clk 0:02:45.8]} 11. Bxg5
{[%clk 0:02:55.2]} 11... Nxd5 {[%clk 0:02:46.1]} 12. Bxc4 {[%clk 0:02:42.2]}
12... Nb6 {[%clk 0:02:46.1]} 13. Bb3 {[%clk 0:02:40.2]} 13... Nc6 {[%clk
0:02:46.2]} 14. d5 {[%clk 0:02:35]} 14... Nd4 {[%clk 0:02:46.3]} 15. O-O {[%clk
0:02:32.4]} 15... Re8 {[%clk 0:02:45.6]} 16. Re1 {[%clk 0:02:27.4]} 16... Qd7
{[%clk 0:02:39]} 17. h4 {[%clk 0:02:03.2]} 17... Rad8 {[%clk 0:01:59.3]} 18. h5
{[%clk 0:01:54.4]} 18... gxh5 {[%clk 0:01:59.7]} 19. Qxh5 {[%clk 0:01:50.1]}
19... Qf5 {[%clk 0:01:59.5]} 20. Qh4 {[%clk 0:01:05.1]} 20... Rd6 {[%clk
0:01:58.4]} 21. Ne4 {[%clk 0:00:56.5]} 21... Rg6 {[%clk 0:01:51.2]} 22. f4
{[%clk 0:00:53.3]} 22... Nxb3 {[%clk 0:01:42.6]} 23. axb3 {[%clk 0:00:53.4]}
23... f6 {[%clk 0:01:01.4]} 24. Ng3 {[%clk 0:00:52.8]} 24... fxg5 {[%clk
0:00:41.1]} 25. Qh5 {[%clk 0:00:53.1]} 25... Qf7 {[%clk 0:00:31.7]} 26. f5
{[%clk 0:00:50]} 26... Rh6 {[%clk 0:00:22.2]} 27. Qxg5 {[%clk 0:00:50.1]} 27...
Nxd5 {[%clk 0:00:21.4]} 28. Rcd1 {[%clk 0:00:41.5]} 28... c6 {[%clk 0:00:21.6]}
29. Re4 {[%clk 0:00:40.3]} 29... Qf6 {[%clk 0:00:18.8]} 30. Qg4 {[%clk
0:00:37.2]} 30... Qf7 {[%clk 0:00:13.8]} 31. Rde1 {[%clk 0:00:34.1]} 31... Nf6
{[%clk 0:00:13.7]} 32. Qf3 {[%clk 0:00:29.8]} 32... Nxe4 {[%clk 0:00:14]} 33.
Nxe4 {[%clk 0:00:29.6]} 33... Bf6 {[%clk 0:00:11.6]} 34. g4 {[%clk 0:00:26.4]}
34... Bd4+ {[%clk 0:00:09.1]} 35. Kg2 {[%clk 0:00:26.5]} 35... Qh7 {[%clk
0:00:08.2]} 36. Qg3 {[%clk 0:00:24.2]} 36... Qg7 {[%clk 0:00:05.2]} 37. g5
{[%clk 0:00:23]} 37... Rh8 {[%clk 0:00:03.6]} 38. f6 {[%clk 0:00:20.5]} 38...
Qg6 {[%clk 0:00:03.9]} 39. Qg4 {[%clk 0:00:19.7]} 39... e6 {[%clk 0:00:03.4]}
40. Rf1 {[%clk 0:00:19.1]} 40... Rf8 {[%clk 0:00:02.7]} 41. Nd6 {[%clk
0:00:18.4]} 41... e5 {[%clk 0:00:02.1]} 42. f7+ {[%clk 0:00:18.3]} 42... Rxf7
{[%clk 0:00:02.5]} 43. Nxf7 {[%clk 0:00:17.6]} 43... Qc2+ {[%clk 0:00:02.8]} 44.
Kf3 {[%clk 0:00:17.5]} 44... Qd3+ {[%clk 0:00:02.9]} 45. Kg2 {[%clk 0:00:17.2]}
45... Qd2+ {[%clk 0:00:03.5]} 46. Kf3 {[%clk 0:00:17]} 46... Qe3+ {[%clk
0:00:03.1]} 47. Kg2 {[%clk 0:00:17.2]} 47... Qd2+ {[%clk 0:00:03.2]} 48. Kf3
{[%clk 0:00:16.9]} 48... Qd3+ {[%clk 0:00:01.7]} 49. Kg2 {[%clk 0:00:17.4]}
49... Qd2+ {[%clk 0:00:01.4]} 1/2-1/2